bitfinex-derivatives/quotes_SOLF0:USTF0_20250830
["timestamp","ask_amount","ask_price","bid_price","bid_amount"]
[1756539171120,7.33,205.16,205.1,7.23]
[1756539171316,2.51160144,205.15,205.1,7.23]
[1756539171514,2.51169136,205.14,205.09,2.82326417]
[1756539171818,10.15326417,205.2,205.1,7.23]
[1756539172014,2.51178629,205.19,205.1,7.23]
[1756539172211,2.51178629,205.18,205.1,7.23]
[1756539172417,2.51178629,205.17,205.1,7.23]
[1756539172617,2.51178629,205.16,205.1,7.23]
[1756539172822,7.33,205.2,205.1,7.23]
[1756539173120,2.51114497,205.19,205.1,7.23]
[1756539173420,2.51114497,205.18,205.1,7.23]
[1756539173725,2.51114497,205.17,205.1,7.23]
[1756539174020,7.33,205.2,205.1,7.23]
[1756539174225,2.51035545,205.19,205.1,7.23]
[1756539174419,2.51035545,205.18,205.1,7.23]
[1756539174616,2.51035545,205.17,205.1,7.23]
[1756539174920,7.33,205.2,205.1,7.23]
[1756539175116,2.51003472,205.19,205.1,7.23]
[1756539175427,2.51003472,205.18,205.1,7.23]
[1756539175718,7.33,205.2,205.1,7.23]
[1756539175918,2.50917469,205.19,205.1,7.23]
[1756539176116,2.50917469,205.18,205.1,7.23]
[1756539176318,7.33,205.2,205.1,7.23]
[1756539176516,2.50840875,205.19,205.1,7.23]
[1756539176717,2.50840875,205.18,205.1,7.23]
[1756539176919,7.33,205.2,205.12,2.82326417]
[1756539177121,2.50842333,205.19,205.13,7.23]
[1756539177320,2.50842333,205.18,205.12,10.05326417]
[1756539177622,7.33,205.19,205.12,10.05326417]
[1756539177823,7.33,205.17,205.08,7.23]
[1756539178120,2.50820768,205.16,205.08,7.23]
[1756539178427,9.83820768,205.15,205.08,7.23]
[1756539178622,7.33,205.15,205.08,7.23]
[1756539179819,2.50900811,205.14,205.08,7.23]
[1756539180019,7.33,205.15,205.08,7.23]
[1756539180321,2.50891779,205.14,205.08,7.23]
[1756539180524,7.33,205.15,205.08,7.23]
[1756539180723,2.50909665,205.14,205.08,7.23]
[1756539180919,7.33,205.15,205.08,7.23]
[1756539181324,2.50907736,205.14,205.08,7.23]
[1756539181525,7.33,205.15,205.08,7.23]
[1756539181724,2.50907774,205.14,205.08,7.23]
[1756539181925,7.33,205.15,205.08,7.23]
[1756539182126,2.50897481,205.14,205.08,7.23]
[1756539182328,7.33,205.15,205.08,7.23]
[1756539182522,2.50807164,205.14,205.08,7.23]
[1756539182826,7.33,205.15,205.08,7.23]
[1756539183023,2.50834655,205.14,205.08,7.23]
[1756539183226,7.33,205.15,205.08,7.23]
[1756539183524,2.50834577,205.14,205.08,7.23]
[1756539183719,7.33,205.15,205.08,7.23]
[1756539183922,2.5084526,205.14,205.08,7.23]
[1756539184130,7.33,205.15,205.08,7.23]
[1756539184328,2.50859007,205.14,205.08,7.23]
[1756539184521,7.33,205.15,205.08,7.23]
[1756539184722,2.50875218,205.14,205.08,7.23]
[1756539184923,7.33,205.15,205.08,7.23]
[1756539185126,2.50907648,205.14,205.08,7.23]
[1756539185426,7.33,205.15,205.08,7.23]
[1756539185626,2.50917799,205.14,205.08,7.23]
[1756539185930,7.33,205.15,205.09,7.23]
[1756539186122,2.50922492,205.14,205.08,2.82326417]
[1756539186322,7.33,205.15,205.09,7.23]
[1756539186518,2.50926176,205.14,205.08,2.82326417]
[1756539186722,13.3,205.21,205.08,2.82326417]
[1756539186723,10.15326417,205.2,205.09,7.23]
[1756539186930,2.50956089,205.19,205.11,2.82326417]
[1756539187128,2.50956089,205.18,205.12,7.66]
[1756539187322,7.33,205.2,205.11,2.82326417]
[1756539187626,2.51027797,205.19,205.12,7.66]
[1756539187830,2.51027797,205.18,205.12,7.66]
[1756539188128,2.5103517,205.17,205.11,2.82326417]
[1756539188329,7.33,205.2,205.12,7.66]
[1756539188630,2.51014163,205.19,205.12,7.66]
[1756539188930,2.51014163,205.18,205.12,7.66]
[1756539189130,7.33,205.2,205.12,7.66]
[1756539189330,2.50942212,205.19,205.12,7.66]
[1756539189531,2.50942212,205.18,205.12,7.66]
[1756539189730,7.33,205.2,205.12,7.66]
[1756539189930,2.50922986,205.19,205.12,7.66]
[1756539190127,10.65326417,205.17,205.08,5.4534673]
[1756539190333,7.83,205.15,205.07,7.66]
[1756539190531,2.50870123,205.14,205.07,7.66]
[1756539190731,7.83,205.15,205.07,7.66]
[1756539190932,2.5087364,205.14,205.07,7.66]
[1756539191133,7.83,205.15,205.07,7.66]
[1756539191332,2.50866026,205.14,205.07,7.66]
[1756539191525,7.83,205.15,205.07,7.66]
[1756539191729,2.50878126,205.14,205.07,7.66]
[1756539191931,7.83,205.15,205.07,7.66]
[1756539192130,2.5087805,205.14,205.07,7.66]
[1756539192329,7.83,205.15,205.07,7.66]
[1756539192634,2.50906837,205.14,205.07,7.66]
[1756539192933,2.50906837,205.13,205.07,7.66]
[1756539193134,7.83,205.15,205.07,7.66]
[1756539193334,2.50921486,205.14,205.07,7.66]
[1756539193627,2.50921486,205.13,205.07,7.66]
[1756539193833,7.83,205.15,205.07,7.66]
[1756539194026,2.50934325,205.14,205.07,7.66]
[1756539194223,2.50934325,205.13,205.07,7.66]
[1756539194434,7.83,205.15,205.07,7.66]
[1756539194635,2.50980278,205.14,205.07,7.66]
[1756539194829,2.50980278,205.13,205.07,7.66]
[1756539195029,7.83,205.15,205.07,7.66]
[1756539195233,2.51055717,205.14,205.07,7.66]
[1756539195534,2.51055717,205.13,205.07,7.66]
[1756539195736,7.83,205.15,205.07,7.66]
[1756539195934,2.51051858,205.14,205.07,7.66]
[1756539196137,2.51051858,205.13,205.07,7.66]
[1756539196337,7.83,205.15,205.07,7.66]
[1756539196536,2.5111624,205.14,205.07,7.66]
[1756539196732,2.5111624,205.13,205.07,7.66]
[1756539196937,7.83,205.15,205.07,7.66]
[1756539197136,2.5111628,205.14,205.07,7.66]
[1756539197334,2.5111628,205.13,205.07,7.66]
[1756539197535,7.83,205.15,205.07,7.66]
[1756539197736,2.51154369,205.14,205.07,7.66]
[1756539197929,2.51154369,205.13,205.07,7.66]
[1756539198135,7.83,205.15,205.05,7.66]
[1756539198336,2.51187503,205.14,205.06,7.66]
[1756539198534,7.83,205.15,205.06,7.66]
[1756539198734,2.51192897,205.14,205.06,7.66]
[1756539198930,2.51192897,205.13,205.06,7.66]
[1756539199138,7.83,205.15,205.06,7.66]
[1756539199335,2.51222853,205.14,205.06,7.66]
[1756539199532,2.51222853,205.13,205.06,7.66]
[1756539199732,7.83,205.15,205.06,7.66]
[1756539199933,2.51232937,205.14,205.06,7.66]
[1756539200132,2.51232937,205.13,205.06,7.66]
[1756539200333,2.51232937,205.12,205.06,7.66]
[1756539200536,7.83,205.15,205.06,7.66]
[1756539200734,2.5128346,205.14,205.06,7.66]
[1756539200934,2.5128346,205.13,205.06,7.66]
[1756539201137,2.5128346,205.12,205.06,7.66]
[1756539201338,7.83,205.15,205.06,7.66]
[1756539201639,2.51286214,205.14,205.06,7.66]
[1756539201935,2.51286214,205.13,205.06,7.66]
[1756539202337,2.51288345,205.12,205.06,7.66]
[1756539202539,7.83,205.15,205.06,7.66]
[1756539202739,2.51296754,205.14,205.06,7.66]
[1756539203037,2.51296754,205.13,205.06,7.66]
[1756539203234,2.51296754,205.12,205.06,7.66]
[1756539203434,7.83,205.15,205.06,7.66]
[1756539203635,2.51296854,205.14,205.06,7.66]
[1756539203837,2.51296854,205.13,205.06,7.66]
[1756539204139,7.83,205.18,205.08,7.66]
[1756539204329,2.51321087,205.17,205.08,7.66]
[1756539204533,2.51321087,205.16,205.08,7.66]
[1756539204733,7.83,205.18,205.08,7.66]
[1756539204734,2.51321087,205.15,205.08,7.66]
[1756539204933,2.51321087,205.14,205.08,7.66]
[1756539205229,2.51313003,205.13,205.08,7.66]
[1756539205430,7.83,205.18,205.08,7.66]
[1756539205635,2.51322453,205.17,205.08,7.66]
[1756539205840,2.51322453,205.16,205.08,7.66]
[1756539206136,2.51322453,205.15,205.08,7.66]
[1756539206338,2.51322453,205.14,205.08,7.66]
[1756539206538,2.51322453,205.13,205.08,7.66]
[1756539206734,7.83,205.18,205.08,7.66]
[1756539206943,2.51325732,205.17,205.08,7.66]
[1756539207141,2.51325732,205.16,205.08,7.66]
[1756539207438,2.51325732,205.15,205.08,7.66]
[1756539207638,7.83,205.18,205.08,7.66]
[1756539207639,2.51325732,205.14,205.08,7.66]
[1756539207828,7.83,205.18,205.08,7.66]
[1756539208035,2.51354134,205.17,205.08,7.66]
[1756539208339,2.51354134,205.16,205.09,7.66]
[1756539208539,2.51354134,205.15,205.09,7.66]
[1756539208734,7.83,205.18,205.09,7.66]
[1756539208935,2.51395698,205.17,205.09,7.66]
[1756539209135,2.51395698,205.16,205.09,7.66]
[1756539209337,2.51395698,205.15,205.09,7.66]
[1756539209538,2.51395698,205.14,205.09,7.66]
[1756539209739,7.83,205.18,205.09,7.66]
[1756539209935,2.51430164,205.17,205.09,7.66]
[1756539210135,2.51430164,205.16,205.09,7.66]
[1756539210335,2.51430164,205.15,205.11,7.66]
[1756539210629,2.51430164,205.14,205.1,2.82326417]
[1756539210833,7.83,205.18,205.11,7.66]
[1756539211034,2.51470416,205.17,205.11,7.66]
[1756539211342,2.51470416,205.16,205.1,2.82326417]
[1756539211542,2.51470416,205.15,205.1,2.82326417]
[1756539211742,2.51470416,205.14,205.1,2.82326417]
[1756539212043,7.83,205.18,205.11,7.66]
[1756539212242,2.51507104,205.17,205.11,7.66]
[1756539212443,2.51507104,205.16,205.1,2.82326417]
[1756539212742,2.51507104,205.15,205.11,7.66]
[1756539212937,2.51520399,205.14,205.1,7.66]
[1756539213143,7.83,205.18,205.1,7.66]
[1756539213540,2.51516306,205.17,205.1,7.66]
[1756539213745,2.51516306,205.16,205.1,7.66]
[1756539214042,7.83,205.18,205.1,7.66]
[1756539214043,2.51516306,205.15,205.1,7.66]
[1756539214243,2.51516306,205.14,205.1,7.66]
[1756539214443,7.83,205.18,205.1,7.66]
[1756539214645,2.51529365,205.17,205.1,7.66]
[1756539214845,2.51529365,205.16,205.1,7.66]
[1756539215149,2.51529365,205.15,205.1,7.66]
[1756539215346,2.51529365,205.14,205.1,7.66]
[1756539215548,7.83,205.18,205.1,7.66]
[1756539215849,2.5153838,205.17,205.1,7.66]
[1756539216148,2.5153838,205.16,205.1,7.66]
[1756539216346,2.5153838,205.15,205.09,12.66443147]
[1756539216543,7.83,205.18,205.1,7.66]
[1756539216749,2.51532624,205.17,205.1,7.66]
[1756539216950,2.51532624,205.16,205.1,7.66]
[1756539217152,2.51532624,205.15,205.11,7.79]
[1756539217352,7.83,205.18,205.12,7.79]
[1756539217652,2.51605655,205.17,205.1,7.79]
[1756539217846,2.51605655,205.16,205.1,7.79]
[1756539218046,2.51605655,205.15,205.11,7.79]
[1756539218346,7.55,205.18,205.1,7.79]
[1756539218546,2.51605852,205.17,205.1,7.79]
[1756539218746,2.51605852,205.16,205.1,7.79]
[1756539218947,2.51605852,205.15,205.09,12.66443147]
[1756539219147,7.55,205.18,205.1,7.79]
[1756539219352,2.51640885,205.17,205.1,7.79]
[1756539219552,2.51640885,205.16,205.1,7.79]
[1756539219744,2.51640885,205.15,205.1,7.79]
[1756539219946,7.55,205.17,205.1,7.79]
[1756539220253,2.51637095,205.16,205.1,7.79]
[1756539220451,2.51637095,205.15,205.1,7.79]
[1756539220650,7.55,205.17,205.1,7.79]
[1756539220850,6.05262067,205.16,205.1,7.79]
[1756539221151,2.5164417,205.15,205.09,7.79]
[1756539221351,2.5164417,205.14,205.08,8.27673147]
[1756539221553,7.55,205.17,205.09,7.79]
[1756539221752,2.51666061,205.16,205.09,7.79]
[1756539221953,2.51666061,205.15,205.09,7.79]
[1756539222150,7.55,205.17,205.09,13.2434673]
[1756539222353,2.51747,205.16,205.1,7.79]
[1756539222648,7.55,205.14,205.09,5.4534673]
[1756539222852,2.51747,205.13,205.07,7.79]
[1756539223052,7.55,205.14,205.07,7.79]
[1756539223053,2.51747,205.12,205.07,5.4534673]
[1756539223256,7.55,205.14,205.09,1.80723603]
[1756539223451,9.35723603,205.15,205.09,9.59723603]
[1756539223655,10.06692066,205.14,205.1,7.79]
[1756539223845,2.51692066,205.13,205.1,7.79]
[1756539224051,2.51692066,205.12,205.1,7.79]
[1756539224245,9.35723603,205.15,205.1,7.79]
[1756539224455,10.06685967,205.14,205.1,7.79]
[1756539224654,2.51685967,205.13,205.1,7.79]
[1756539224956,2.51685967,205.12,205.1,7.79]
[1756539225254,7.55,205.14,205.1,7.79]
[1756539225455,2.51696033,205.13,205.1,7.79]
[1756539225656,2.51696033,205.12,205.1,7.79]
[1756539225953,7.55,205.1,205.05,5.4534673]
[1756539226157,7.55,205.08,205.03,5.4534673]
[1756539226456,10.06543968,205.07,205.04,7.79]
[1756539226649,7.55,205.07,205.04,7.79]
[1756539227250,7.55,205.08,205.01,5.4534673]
[1756539227451,2.51434413,205.07,205.0,13.2434673]
[1756539227659,10.06434413,205.06,205.0,7.79]
[1756539227850,7.55,205.04,204.97,5.4534673]
[1756539228054,2.51416469,205.03,204.97,5.4534673]
[1756539228257,7.55,205.04,204.96,13.2434673]
[1756539229353,7.55,205.04,204.96,7.79]
[1756539229554,2.51010586,205.03,204.93,13.2434673]
[1756539229769,10.06010586,205.02,204.93,7.79]
[1756539230056,2.51010586,205.01,204.93,7.79]
[1756539230260,7.55,205.02,204.93,7.79]
[1756539242766,7.55,205.0,204.89,7.79]
[1756539244265,2.8259578,204.95,204.86,7.79]
[1756539244466,7.55,204.94,204.86,7.79]
[1756539247958,10.3759578,204.94,204.86,7.79]
[1756539249865,7.17,204.93,204.83,7.17]
[1756539254368,2.8259578,204.91,204.83,7.17]
[1756539254671,7.17,204.9,204.83,7.17]
[1756539255468,2.8259578,204.97,204.84,7.17]
[1756539255667,7.17,204.96,204.84,7.17]
[1756539256470,2.8259578,204.94,204.84,7.17]
[1756539256666,7.17,204.93,204.84,7.17]
[1756539257370,7.17,204.96,204.87,7.17]
[1756539258463,327.92,205.0,204.9,7.17]
[1756539258665,7.17,204.99,204.9,7.17]
[1756539264179,2.8259578,204.95,204.84,2.8259578]
[1756539264374,7.17,204.94,204.85,7.17]
[1756539267978,2.8259578,204.98,204.8,14.14]
[1756539267979,2.8259578,204.98,204.88,7.17]
[1756539268278,9.66629752,204.97,204.88,7.17]
[1756539268480,7.17,204.97,204.88,7.17]
[1756539268681,2.4979832,204.96,204.88,7.17]
[1756539268881,7.17,204.97,204.88,7.17]
[1756539269083,7.17,204.94,204.88,7.17]
[1756539270584,7.17,204.92,204.88,7.17]
[1756539272086,2.8259578,204.95,204.85,4.3928]
[1756539272284,2.50328803,204.94,204.86,7.17]
[1756539272485,2.50328803,204.93,204.86,7.17]
[1756539272684,7.17,204.96,204.86,7.17]
[1756539272882,7.17,204.94,204.86,7.17]
[1756539273096,2.5047644,204.93,204.86,7.17]
[1756539273297,2.50472743,204.92,204.86,7.17]
[1756539273498,7.17,204.94,204.86,7.17]
[1756539273694,2.50546021,204.93,204.86,7.17]
[1756539273898,2.50546021,204.92,204.86,7.17]
[1756539274095,34.88863746,205.37,204.86,7.17]
[1756539274096,5.44894334,205.05,204.86,7.17]
[1756539274302,34.07563942,204.99,204.88,7.17]
[1756539274502,2.50563942,204.98,204.88,7.17]
[1756539274692,2.50563942,204.97,204.88,7.17]
[1756539274895,2.50563942,204.96,204.88,7.17]
[1756539275099,34.3959578,204.99,204.88,7.17]
[1756539275302,2.5066127,204.98,204.88,7.17]
[1756539275596,2.5066127,204.97,204.88,7.17]
[1756539275801,2.5066127,204.96,204.88,7.17]
[1756539275993,2.5066127,204.95,204.88,7.17]
[1756539276198,34.3959578,204.99,204.88,7.17]
[1756539276500,2.50702924,204.98,204.88,7.17]
[1756539276700,7.17,204.99,204.88,7.17]
[1756539276701,2.50702924,204.97,204.88,7.17]
[1756539276901,2.50702924,204.96,204.88,7.17]
[1756539277096,2.50702924,204.95,204.88,7.17]
[1756539277292,7.17,204.99,204.88,7.17]
[1756539277496,2.50810393,204.98,204.88,7.17]
[1756539277694,2.50810393,204.97,204.88,7.17]
[1756539277894,2.50810393,204.96,204.88,7.17]
[1756539278094,2.50810393,204.95,204.88,7.17]
[1756539278294,9.9959578,204.99,204.88,7.17]
[1756539278498,2.50870302,204.98,204.88,7.17]
[1756539278705,2.50870302,204.97,204.88,7.17]
[1756539278905,2.50870302,204.96,204.88,7.17]
[1756539279109,2.50870302,204.95,204.88,7.17]
[1756539279311,9.9959578,204.99,204.88,7.17]
[1756539279507,2.50928123,204.98,204.88,7.17]
[1756539279708,2.50928123,204.97,204.88,7.17]
[1756539279907,2.50928123,204.96,204.88,7.17]
[1756539280108,2.50928123,204.95,204.88,7.17]
[1756539280408,9.9959578,204.99,204.88,7.17]
[1756539280604,2.50991116,204.98,204.88,7.17]
[1756539280804,2.50991116,204.97,204.88,7.17]
[1756539281106,2.50991116,204.96,204.88,7.17]
[1756539281305,2.50991116,204.95,204.88,7.17]
[1756539281500,7.58,204.97,204.88,7.17]
[1756539281704,2.51059775,204.96,204.88,7.17]
[1756539281908,2.51059775,204.95,204.88,7.17]
[1756539282203,7.58,204.97,204.88,7.17]
[1756539282508,2.51059698,204.96,204.88,7.17]
[1756539282707,2.51059698,204.95,204.88,7.17]
[1756539282904,7.58,204.93,204.88,7.17]
[1756539283115,2.51128098,204.92,204.88,7.17]
[1756539283308,7.58,204.95,204.88,7.17]
[1756539283510,2.51212844,204.94,204.88,7.17]
[1756539283802,7.58,204.92,204.88,7.17]
[1756539284108,7.58,204.92,204.84,7.65]
[1756539284310,2.51311705,204.91,204.84,7.65]
[1756539284511,2.51296632,204.9,204.84,7.65]
[1756539284704,7.58,204.92,204.84,7.65]
[1756539284904,2.51291772,204.91,204.84,7.65]
[1756539285106,2.51291772,204.9,204.84,7.65]
[1756539285405,7.58,204.92,204.84,7.65]
[1756539285600,2.51287695,204.91,204.84,7.65]
[1756539285804,2.51287695,204.9,204.84,7.65]
[1756539286107,7.58,204.92,204.84,7.65]
[1756539286308,2.51287733,204.91,204.84,7.65]
[1756539286507,2.51287733,204.9,204.84,7.65]
[1756539286709,7.58,204.92,204.84,7.65]
[1756539286910,2.51289365,204.91,204.84,7.65]
[1756539287102,2.51289365,204.9,204.84,7.65]
[1756539287304,2.51462725,204.89,204.84,7.65]
[1756539287503,7.58,204.92,204.83,7.65]
[1756539287708,2.51462725,204.91,204.83,7.65]
[1756539287905,2.51462725,204.9,204.85,7.65]
[1756539288211,7.58,204.95,204.87,7.65]
[1756539288409,2.51495936,204.94,204.87,7.65]
[1756539288709,2.51495936,204.93,204.87,7.65]
[1756539288906,2.51495936,204.92,204.86,2.8259578]
[1756539289212,7.58,204.95,204.87,7.65]
[1756539289408,2.51556441,204.94,204.87,7.65]
[1756539289712,2.51556441,204.93,204.87,7.65]
[1756539289915,2.51556441,204.92,204.87,7.65]
[1756539290110,2.51556441,204.91,204.86,2.8259578]
[1756539290301,7.58,204.95,204.87,7.65]
[1756539290508,7.58,204.93,204.87,7.65]
[1756539290707,7.58,204.91,204.87,7.65]
[1756539291407,7.58,204.91,204.84,7.65]
[1756539291607,7.58,204.95,204.84,7.65]
[1756539291806,7.58,204.89,204.8,7.65]
[1756539292008,6.13138763,204.88,204.8,7.65]
[1756539292207,6.13138763,204.87,204.8,7.65]
[1756539292412,2.51227337,204.86,204.8,7.65]
[1756539292607,2.51227337,204.85,204.79,7.65]
[1756539292814,7.58,204.89,204.79,7.65]
[1756539293013,6.12845222,204.88,204.79,7.65]
[1756539293213,2.51049775,204.87,204.79,7.65]
[1756539293409,2.51049775,204.86,204.79,7.65]
[1756539293613,7.58,204.89,204.79,7.65]
[1756539293808,2.50990061,204.88,204.79,7.65]
[1756539294008,2.50990061,204.87,204.79,7.65]
[1756539294209,2.50990061,204.86,204.79,7.65]
[1756539294506,7.58,204.89,204.79,7.65]
[1756539294703,2.50955605,204.88,204.79,7.65]
[1756539295010,2.50955605,204.87,204.79,7.65]
[1756539295213,7.58,204.89,204.79,7.65]
[1756539295410,2.50923048,204.88,204.79,7.65]
[1756539295611,2.50923048,204.87,204.79,7.65]
[1756539295912,7.58,204.89,204.79,7.65]
[1756539296112,2.50923406,204.88,204.79,7.65]
[1756539296315,2.50923406,204.87,204.79,7.65]
[1756539296616,7.58,204.89,204.79,7.65]
[1756539296816,2.5089267,204.88,204.79,7.65]
[1756539297114,2.5089267,204.87,204.81,2.8259578]
[1756539297314,7.58,204.89,204.82,7.65]
[1756539297515,2.50881403,204.88,204.82,7.65]
[1756539297708,2.50881403,204.87,204.81,2.8259578]
[1756539297905,7.58,204.89,204.82,7.65]
[1756539298111,2.50959861,204.88,204.82,7.65]
[1756539298310,2.50959861,204.87,204.82,7.65]
[1756539298514,7.58,204.89,204.82,7.65]
[1756539298715,2.5093903,204.88,204.82,7.65]
[1756539298914,2.5093903,204.87,204.81,2.8259578]
[1756539299214,7.58,204.89,204.82,7.65]
[1756539299414,2.50938991,204.88,204.82,7.65]
[1756539299616,2.50938991,204.87,204.8,7.65]
[1756539299815,7.58,204.89,204.8,7.65]
[1756539300016,2.50918752,204.88,204.8,7.65]
[1756539300217,2.50918752,204.87,204.8,7.65]
[1756539300518,7.58,204.89,204.8,7.65]
[1756539300720,2.50842812,204.88,204.8,7.65]
[1756539301017,2.50842812,204.87,204.8,7.65]
[1756539301317,7.58,204.89,204.8,7.65]
[1756539301518,2.50780729,204.88,204.8,7.65]
[1756539301718,2.50780729,204.87,204.8,7.65]
[1756539301920,7.58,204.89,204.8,7.65]
[1756539302119,2.50755502,204.88,204.8,7.65]
[1756539302418,2.50755502,204.87,204.8,7.65]
[1756539302619,7.58,204.89,204.8,7.65]
[1756539302815,2.5072064,204.88,204.8,7.65]
[1756539303016,2.5072064,204.87,204.8,7.65]
[1756539303218,7.58,204.89,204.8,7.65]
[1756539303417,10.4059578,204.93,204.82,2.8259578]
[1756539303612,101.31479878,204.95,204.79,5.4534673]
[1756539303613,2.8259578,204.9,204.79,5.4534673]
[1756539303919,10.08722457,204.89,204.81,7.65]
[1756539304121,2.50722457,204.88,204.81,7.65]
[1756539304318,7.58,204.89,204.81,7.65]
[1756539304518,2.50705254,204.88,204.81,7.65]
[1756539304720,7.58,204.89,204.81,7.65]
[1756539304927,2.50715439,204.88,204.81,7.65]
[1756539305120,7.58,204.89,204.81,7.65]
[1756539305319,2.50703149,204.88,204.81,7.65]
[1756539305522,7.58,204.89,204.81,7.65]
[1756539305721,2.50706048,204.88,204.81,7.65]
[1756539306016,2.50706048,204.88,204.8,2.8259578]
[1756539306017,10.4059578,204.89,204.77,13.1034673]
[1756539306214,7.58,204.82,204.73,7.65]
[1756539306414,2.50702244,204.81,204.73,7.65]
[1756539306621,7.58,204.82,204.75,7.65]
[1756539309027,7.83,204.85,204.76,7.54]
[1756539309328,2.5045845,204.84,204.77,7.54]
[1756539309529,7.83,204.91,204.8,2.8259578]
[1756539309725,101.31479878,204.95,204.78,7.54]
[1756539309726,7.83,204.88,204.79,32.8259578]
[1756539309925,2.50559097,204.87,204.78,7.54]
[1756539310228,7.83,204.86,204.78,41.38]
[1756539311427,7.83,204.86,204.78,7.54]
[1756539312220,10.6559578,204.86,204.78,7.54]
[1756539312531,7.83,204.84,204.78,7.54]
[1756539312924,2.8259578,204.83,204.74,7.54]
[1756539313130,10.33465268,204.82,204.74,7.54]
[1756539313327,7.83,204.8,204.74,7.54]
[1756539313532,10.6559578,204.8,204.7,458.5859578]
[1756539313727,10.6559578,204.8,204.7,338.1659578]
[1756539314033,7.83,204.79,204.7,458.5859578]
[1756539315133,7.83,204.79,204.7,455.76]
[1756539315732,7.83,204.79,204.7,335.34]
[1756539317932,2.8259578,204.8,204.7,335.34]
[1756539318131,7.83,204.79,204.7,335.34]
[1756539318328,2.8259578,204.8,204.7,335.34]
[1756539318532,7.83,204.76,204.7,335.34]
[1756539318731,7.83,204.76,204.7,7.54]
[1756539331341,10.6559578,204.76,204.7,7.54]
[1756539331545,10.6559578,204.76,204.66,7.54]
[1756539335245,2.50165424,204.75,204.66,7.54]
[1756539335551,7.83,204.74,204.66,7.54]
[1756539336641,2.8259578,204.73,204.63,10.3659578]
[1756539336947,7.65,204.72,204.63,10.3659578]
[1756539337137,7.65,204.72,204.63,7.54]
[1756539356257,2.51234911,204.71,204.63,7.54]
[1756539356455,10.16223694,204.7,204.63,7.54]
[1756539356655,7.65,204.7,204.63,7.54]
[1756539358659,10.4759578,204.7,204.63,7.54]
[1756539359258,1.81548107,204.68,204.63,7.54]
[1756539359654,1.81548107,204.68,204.62,1.81548107]
[1756539360359,1.81548107,204.68,204.63,7.54]
[1756539360554,1.81548107,204.68,204.62,1.81548107]
[1756539361450,1.81548107,204.68,204.63,7.54]
[1756539361850,1.81548107,204.68,204.62,1.81548107]
[1756539362063,1.81548107,204.68,204.63,7.54]
[1756539362453,1.81548107,204.68,204.62,1.81548107]
[1756539362657,1.81548107,204.68,204.63,7.54]
[1756539362853,1.81548107,204.68,204.61,5.4534673]
[1756539363059,1.81548107,204.68,204.62,9.35548107]
[1756539363963,7.65,204.79,204.65,7.54]
[1756539364160,1.81548107,204.71,204.65,7.54]
[1756539364356,2.51426821,204.7,204.64,1.81548107]
[1756539364764,9.46548107,204.71,204.65,7.54]
[1756539364964,9.46548107,204.69,204.65,7.54]
[1756539365865,7.65,204.68,204.65,7.54]
[1756539366362,7.65,204.67,204.61,7.54]